[Event "NJSK 2024 C"]
[Site "Groningen, Netherlands"]
[Date "2024.05.02"]
[Round "8.5"]
[White "Aravindhan, Achyuth"]
[Black "Winter, Sven"]
[Result "1-0"]
[TimeControl "90min/40moves + 30min + 30sec/move"]
[WhiteElo "2071"]
[BlackElo "1768"]

1. e4 {[%clk 01:30:59]} c6 {[%clk 01:26:52]} {[%emt 00:04:09]} 2. d4 {[%clk
01:31:25]} {[%emt 00:00:04]} d5 {[%clk 01:27:17]} {[%emt 00:00:05]} 3. Nc3
{[%clk 01:31:49]} {[%emt 00:00:06]} dxe4 {[%clk 01:27:40]} {[%emt 00:00:06]} 4.
Nxe4 {[%clk 01:32:15]} {[%emt 00:00:04]} Nf6 {[%clk 01:28:01]} {[%emt
00:00:10]} 5. Nxf6+ {[%clk 01:32:41]} {[%emt 00:00:03]} exf6 {[%clk 01:28:22]}
{[%emt 00:00:08]} 6. c3 {[%clk 01:33:05]} {[%emt 00:00:07]} Bf5 {[%clk
01:28:48]} {[%emt 00:00:05]} 7. Bd3 {[%clk 01:33:27]} {[%emt 00:00:08]} Bxd3
{[%clk 01:29:11]} {[%emt 00:00:06]} 8. Qxd3 {[%clk 01:33:52]} {[%emt 00:00:05]}
Bd6 {[%clk 01:29:33]} {[%emt 00:00:08]} 9. Nf3 {[%clk 01:33:45]} {[%emt
00:00:37]} O-O {[%clk 01:29:56]} {[%emt 00:00:07]} 10. O-O {[%clk 01:33:56]}
{[%emt 00:00:19]} Re8 {[%clk 01:30:21]} {[%emt 00:00:06]} 11. Be3 {[%clk
01:32:38]} {[%emt 00:01:48]} Nd7 {[%clk 01:29:45]} {[%emt 00:01:05]} 12. Rad1
{[%clk 01:30:30]} {[%emt 00:02:38]} Qc7 {[%clk 01:29:19]} {[%emt 00:00:56]} 13.
c4 {[%clk 01:12:09]} {[%emt 00:18:51]} Rad8 {[%clk 01:26:59]} {[%emt 00:02:50]}
14. h3 {[%clk 01:11:00]} {[%emt 00:01:39]} c5 {[%clk 01:25:29]} {[%emt
00:02:00]} 15. d5 {[%clk 01:10:51]} {[%emt 00:00:39]} a6 {[%clk 01:14:33]}
{[%emt 00:11:26]} 16. Rc1 {[%clk 00:59:58]} {[%emt 00:11:23]} Rb8 {[%clk
01:14:15]} {[%emt 00:00:47]} 17. a3 {[%clk 00:58:47]} {[%emt 00:01:43]} Qd8
{[%clk 01:07:29]} {[%emt 00:07:16]} 18. b4 {[%clk 00:41:18]} {[%emt 00:17:59]}
b5 {[%clk 01:07:10]} {[%emt 00:00:47]} 19. Nd2 {[%clk 00:37:28]} {[%emt
00:04:21]} Qe7 {[%clk 01:01:04]} {[%emt 00:06:36]} 20. cxb5 {[%clk 00:28:09]}
{[%emt 00:09:50]} Ne5 {[%clk 00:59:04]} {[%emt 00:02:30]} 21. Qe2 {[%clk
00:23:10]} {[%emt 00:05:28]} cxb4 {[%clk 00:58:42]} {[%emt 00:00:52]} 22. bxa6
{[%clk 00:23:01]} {[%emt 00:00:39]} bxa3 {[%clk 00:53:47]} {[%emt 00:05:26]} 23.
a7 {[%clk 00:23:02]} {[%emt 00:00:29]} Ra8 {[%clk 00:52:39]} {[%emt 00:01:37]}
24. Qa6 {[%clk 00:23:00]} {[%emt 00:00:33]} f5 {[%clk 00:34:39]} {[%emt
00:18:29]} 25. Rfe1 {[%clk 00:19:41]} {[%emt 00:03:49]} Bb4 {[%clk 00:30:14]}
{[%emt 00:04:55]} 26. f4 {[%clk 00:17:09]} {[%emt 00:03:02]} Ng6 {[%clk
00:21:04]} {[%emt 00:09:39]} 27. Bf2 {[%clk 00:12:16]} {[%emt 00:05:24]} Qd7
{[%clk 00:19:13]} {[%emt 00:02:21]} 28. Rxe8+ {[%clk 00:11:45]} {[%emt
00:01:02]} Qxe8 {[%clk 00:19:22]} {[%emt 00:00:20]} 29. Nc4 {[%clk 00:11:43]}
{[%emt 00:00:32]} Nxf4 {[%clk 00:18:38]} {[%emt 00:01:14]} 30. Nb6 {[%clk
00:11:23]} {[%emt 00:00:50]} Rxa7 {[%clk 00:17:12]} {[%emt 00:01:56]} 31. Rc8
{[%clk 00:11:05]} {[%emt 00:00:49]} Rxa6 {[%clk 00:14:35]} {[%emt 00:03:06]} 32.
Rxe8+ {[%clk 00:11:26]} {[%emt 00:00:09]} Bf8 {[%clk 00:14:59]} {[%emt
00:00:06]} 33. Nd7 {[%clk 00:06:52]} {[%emt 00:05:04]} h5 {[%clk 00:10:53]}
{[%emt 00:04:36]} 34. Rxf8+ {[%clk 00:01:34]} {[%emt 00:05:48]} Kh7 {[%clk
00:11:12]} {[%emt 00:00:10]} 35. Re8 {[%clk 00:01:45]} {[%emt 00:00:19]} a2
{[%clk 00:10:46]} {[%emt 00:00:57]} 36. Bd4 {[%clk 00:02:06]} {[%emt 00:00:08]}
a1=Q+ {[%clk 00:10:51]} {[%emt 00:00:25]} 37. Bxa1 {[%clk 00:02:32]} {[%emt
00:00:04]} Rxa1+ {[%clk 00:11:13]} {[%emt 00:00:08]} 38. Kf2 {[%clk 00:01:00]}
{[%emt 00:02:03]} Ra2+ {[%clk 00:10:59]} {[%emt 00:00:44]} 39. Kf3 {[%clk
00:01:00]} {[%emt 00:00:27]} Nxd5 {[%clk 00:10:10]} {[%emt 00:01:22]} 40. Re5
{[%clk 00:00:54]} {[%emt 00:00:32]} Rd2 {[%clk 00:07:34]} {[%emt 00:03:10]} 41.
h4 {[%clk 00:00:39]} {[%emt 00:00:45]} g6 {[%clk 00:06:46]} {[%emt 00:01:16]}
42. Rxd5 {[%clk 00:01:03]} {[%emt 00:00:09]} Rb2 {[%clk 00:05:51]} {[%emt
00:01:24]} 43. Ne5 {[%clk 00:00:48]} {[%emt 00:00:45]} Rb3+ {[%clk 00:05:53]}
{[%emt 00:00:28]} 44. Kf4 {[%clk 00:00:58]} {[%emt 00:00:14]} Rb4+ {[%clk
00:06:05]} {[%emt 00:00:23]} 45. Kg5 {[%clk 00:00:45]} {[%emt 00:00:36]} Rb2
{[%clk 00:05:09]} {[%emt 00:01:33]} 46. g3 {[%clk 00:00:46]} {[%emt 00:00:28]}
Rg2 {[%clk 00:04:54]} {[%emt 00:00:47]} 47. Kf4 {[%clk 00:00:50]} {[%emt
00:00:26]} Rf2+ {[%clk 00:05:00]} {[%emt 00:00:24]} 48. Ke3 {[%clk 00:00:59]}
{[%emt 00:00:17]} Rg2 {[%clk 00:04:56]} {[%emt 00:00:36]} 49. Kf3 {[%clk
00:01:22]} {[%emt 00:00:06]} Ra2 {[%clk 00:05:14]} {[%emt 00:00:14]} 50. Nxf7
{[%clk 00:01:30]} {[%emt 00:00:23]} Kg7 {[%clk 00:05:26]} {[%emt 00:00:17]} 51.
Ne5 {[%clk 00:01:16]} {[%emt 00:00:44]} Kf6 {[%clk 00:05:02]} {[%emt 00:00:53]}
52. Nc4 {[%clk 00:00:44]} {[%emt 00:01:02]} Ra4 {[%clk 00:04:36]} {[%emt
00:00:19]} 53. Ne3 {[%clk 00:01:05]} {[%emt 00:00:47]} Ra3 {[%clk 00:04:59]}
{[%emt 00:00:08]} 54. Rd6+ {[%clk 00:01:23]} {[%emt 00:00:11]} Kf7 {[%clk
00:05:22]} {[%emt 00:00:07]} 55. Rb6 {[%clk 00:01:14]} {[%emt 00:00:39]} Rc3
{[%clk 00:05:35]} {[%emt 00:00:17]} 56. Kf4 {[%clk 00:01:26]} {[%emt 00:00:17]}
Rd3 {[%clk 00:05:44]} {[%emt 00:00:22]} 57. Rb7+ {[%clk 00:00:58]} {[%emt
00:00:59]} Kf6 {[%clk 00:06:05]} {[%emt 00:00:08]} 58. Rb6+ {[%clk 00:01:24]}
{[%emt 00:00:05]} Kf7 {[%clk 00:06:17]} {[%emt 00:00:17]} 59. Ra6 {[%clk
00:01:08]} {[%emt 00:00:46]} Rb3 {[%clk 00:06:09]} {[%emt 00:00:35]} 60. Ra4
{[%clk 00:01:13]} {[%emt 00:00:28]} Ke6 {[%clk 00:05:39]} {[%emt 00:00:59]} 61.
Nc4 {[%clk 00:01:23]} {[%emt 00:00:19]} Kd5 {[%clk 00:02:40]} {[%emt 00:03:30]}
62. Nd2 {[%clk 00:01:17]} {[%emt 00:00:35]} Rb6 {[%clk 00:02:44]} {[%emt
00:00:28]} 63. Nf3 {[%clk 00:01:30]} {[%emt 00:00:16]} Ke6 {[%clk 00:02:30]}
{[%emt 00:00:44]} 64. Ne5 {[%clk 00:01:32]} {[%emt 00:00:28]} Kd5 {[%clk
00:02:03]} {[%emt 00:00:57]} 65. Nf3 {[%clk 00:01:22]} {[%emt 00:00:39]} Re6
{[%clk 00:01:24]} {[%emt 00:01:08]} 66. Ra5+ {[%clk 00:01:27]} {[%emt
00:00:27]} Kc4 {[%clk 00:01:08]} {[%emt 00:00:45]} 67. Re5 {[%clk 00:01:21]}
{[%emt 00:00:37]} Rd6 {[%clk 00:01:10]} {[%emt 00:00:28]} 68. Re3 {[%clk
00:01:26]} {[%emt 00:00:21]} Rd1 {[%clk 00:00:57]} {[%emt 00:00:47]} 69. Ne5+
{[%clk 00:01:47]} {[%emt 00:00:09]} Kd4 {[%clk 00:01:18]} {[%emt 00:00:09]} 70.
Nxg6 {[%clk 00:02:03]} {[%emt 00:00:15]} Rg1 {[%clk 00:01:28]} {[%emt
00:00:19]} 71. Ne7 {[%clk 00:02:06]} {[%emt 00:00:28]} Rf1 {[%clk 00:01:33]}
{[%emt 00:00:24]} 72. Rf3 {[%clk 00:02:31]} {[%emt 00:00:04]} Rxf3 {[%clk
00:01:38]} {[%emt 00:00:26]} 73. Kxf3 {[%clk 00:02:55]} {[%emt 00:00:06]} Ke5
{[%clk 00:02:06]} {[%emt 00:00:02]} 74. Ng6+ {[%clk 00:03:19]} {[%emt
00:00:07]} Kf6 {[%clk 00:02:30]} {[%emt 00:00:05]} 75. Nf4 {[%clk 00:03:46]}
{[%emt 00:00:03]} Ke5 {[%clk 00:02:54]} {[%emt 00:00:05]} 76. Nxh5 {[%clk
00:04:13]} {[%emt 00:00:04]} 1-0

[Event "NJSK 2024 C"]
[Site "Groningen, Netherlands"]
[Date "2024.05.02"]
[Round "8.6"]
[White "Tetova, Amir"]
[Black "Darie, Aden"]
[Result "0-1"]
[TimeControl "90min/40moves + 30min + 30sec/move"]
[WhiteElo "1767"]
[BlackElo "1923"]

1. d4 {[%clk 01:30:59]} Nf6 {[%clk 01:30:59]} {[%emt 00:00:01]} 2. Bf4 {[%clk
01:31:29]} e6 {[%clk 01:31:23]} {[%emt 00:00:06]} 3. Nf3 {[%clk 01:31:52]}
{[%emt 00:00:07]} b6 {[%clk 01:31:49]} {[%emt 00:00:04]} 4. e3 {[%clk
01:32:14]} {[%emt 00:00:09]} Bb7 {[%clk 01:32:14]} {[%emt 00:00:03]} 5. c4
{[%clk 01:32:25]} {[%emt 00:00:20]} Bb4+ {[%clk 01:32:25]} {[%emt 00:00:18]} 6.
Nc3 {[%clk 01:32:49]} {[%emt 00:00:06]} O-O {[%clk 01:32:27]} {[%emt 00:00:28]}
7. Bd3 {[%clk 01:32:57]} {[%emt 00:00:22]} d6 {[%clk 01:32:36]} {[%emt
00:00:20]} 8. Qc2 {[%clk 01:32:32]} {[%emt 00:00:56]} Nbd7 {[%clk 01:31:42]}
{[%emt 00:01:24]} 9. O-O-O {[%clk 01:29:58]} {[%emt 00:03:04]} Bxc3 {[%clk
01:31:35]} {[%emt 00:00:38]} 10. Qxc3 {[%clk 01:29:51]} {[%emt 00:00:37]} Ne4
{[%clk 01:28:55]} {[%emt 00:03:09]} 11. Qc2 {[%clk 01:28:02]} {[%emt 00:02:19]}
f5 {[%clk 01:27:21]} {[%emt 00:02:04]} 12. h4 {[%clk 01:26:43]} {[%emt
00:01:49]} Ndf6 {[%clk 01:25:46]} {[%emt 00:02:05]} 13. Ng5 {[%clk 01:24:58]}
{[%emt 00:02:16]} Qe7 {[%clk 01:19:54]} {[%emt 00:06:22]} 14. f3 {[%clk
01:23:38]} {[%emt 00:01:50]} Nxg5 {[%clk 01:19:38]} {[%emt 00:00:46]} 15. hxg5
{[%clk 01:22:15]} {[%emt 00:01:53]} Nd7 {[%clk 01:19:39]} {[%emt 00:00:28]} 16.
Rh3 {[%clk 01:20:26]} {[%emt 00:02:19]} g6 {[%clk 01:13:36]} {[%emt 00:06:33]}
17. Qf2 {[%clk 01:09:46]} {[%emt 00:11:10]} e5 {[%clk 01:03:24]} {[%emt
00:10:40]} 18. dxe5 {[%clk 01:05:05]} {[%emt 00:05:13]} dxe5 {[%clk 01:03:48]}
{[%emt 00:00:06]} 19. Bg3 {[%clk 01:03:11]} {[%emt 00:02:25]} e4 {[%clk
01:04:11]} {[%emt 00:00:06]} 20. Bc2 {[%clk 01:03:12]} {[%emt 00:00:29]} Nc5
{[%clk 01:02:55]} {[%emt 00:01:45]} 21. Bf4 {[%clk 00:53:46]} {[%emt 00:09:56]}
Rad8 {[%clk 00:58:51]} {[%emt 00:04:35]} 22. Rxd8 {[%emt 00:03:46]} Rxd8 {[%clk
00:58:59]} {[%emt 00:00:19]} 23. fxe4 {[%clk 00:48:52]} {[%emt 00:02:11]} Bxe4
{[%clk 00:59:06]} {[%emt 00:00:23]} 24. Bxe4 {[%clk 00:44:26]} {[%emt
00:04:55]} Qxe4 {[%clk 00:59:17]} {[%emt 00:00:20]} 25. Qc2 {[%clk 00:42:47]}
{[%emt 00:02:10]} Nd3+ {[%clk 00:59:41]} {[%emt 00:00:06]} 26. Kb1 {[%clk
00:43:12]} {[%emt 00:00:05]} Nb4 {[%clk 00:59:58]} {[%emt 00:00:12]} 0-1

[Event "NJSK 2024 C"]
[Site "Groningen, Netherlands"]
[Date "2024.05.02"]
[Round "8.7"]
[White "Zecha, Oscar"]
[Black "Leenen, Boyd"]
[Result "1-0"]
[TimeControl "90min/40moves + 30min + 30sec/move"]
[WhiteElo "1998"]
[BlackElo "1920"]

1. e4 {[%clk 01:30:57]} {[%emt 00:00:03]} e5 {[%clk 01:30:55]} {[%emt
00:00:06]} 2. Nf3 {[%clk 01:31:23]} {[%emt 00:00:03]} Nc6 {[%clk 01:31:19]}
{[%emt 00:00:07]} 3. Bb5 {[%clk 01:31:50]} {[%emt 00:00:03]} a6 {[%clk
01:31:38]} {[%emt 00:00:11]} 4. Ba4 {[%clk 01:32:16]} {[%emt 00:00:04]} Nf6
{[%clk 01:31:58]} {[%emt 00:00:09]} 5. O-O {[%clk 01:32:40]} {[%emt 00:00:06]}
b5 {[%clk 01:32:14]} {[%emt 00:00:14]} 6. Bb3 {[%clk 01:33:07]} {[%emt
00:00:03]} Be7 {[%clk 01:32:29]} {[%emt 00:00:16]} 7. Re1 {[%clk 01:33:28]}
{[%emt 00:00:08]} O-O {[%clk 01:32:32]} {[%emt 00:00:27]} 8. a4 {[%clk
01:33:54]} {[%emt 00:00:05]} Bb7 {[%clk 01:32:41]} {[%emt 00:00:20]} 9. d3
{[%clk 01:34:11]} {[%emt 00:00:13]} d6 {[%clk 01:32:38]} {[%emt 00:00:33]} 10.
Nbd2 {[%clk 01:34:10]} {[%emt 00:00:30]} Na5 {[%clk 01:29:50]} {[%emt
00:03:19]} 11. Ba2 {[%clk 01:33:22]} {[%emt 00:01:16]} c5 {[%clk 01:29:34]}
{[%emt 00:00:48]} 12. Nf1 {[%clk 01:31:40]} {[%emt 00:02:11]} Re8 {[%clk
01:23:04]} {[%emt 00:07:01]} 13. Bg5 {[%clk 01:25:36]} {[%emt 00:06:33]} h6
{[%clk 01:22:19]} {[%emt 00:01:16]} 14. Bxf6 {[%clk 01:26:02]} {[%emt
00:00:04]} Bxf6 {[%clk 01:22:38]} {[%emt 00:00:10]} 15. Ne3 {[%clk 01:26:29]}
{[%emt 00:00:03]} Rc8 {[%clk 01:21:13]} {[%emt 00:01:55]} 16. axb5 {[%clk
01:23:14]} {[%emt 00:03:46]} axb5 {[%clk 01:20:56]} {[%emt 00:00:47]} 17. Nd5
{[%clk 01:22:33]} {[%emt 00:01:11]} Bxd5 {[%clk 01:05:23]} {[%emt 00:16:03]} 18.
Bxd5 {[%clk 01:22:38]} {[%emt 00:00:25]} Qb6 {[%clk 01:03:19]} {[%emt
00:02:35]} 19. Nd2 {[%clk 01:16:13]} {[%emt 00:06:54]} Nc6 {[%clk 01:03:12]}
{[%emt 00:00:37]} 20. Qh5 {[%clk 01:14:51]} {[%emt 00:01:51]} Rf8 {[%clk
01:00:53]} {[%emt 00:02:50]} 21. Nf1 {[%clk 01:09:14]} {[%emt 00:06:07]} Nb4
{[%clk 00:56:50]} {[%emt 00:04:33]} 22. Ne3 {[%clk 01:05:04]} {[%emt 00:04:39]}
Bg5 {[%clk 00:56:44]} {[%emt 00:00:36]} 23. Nf5 {[%clk 00:58:45]} {[%emt
00:06:50]} Nxd5 {[%clk 00:56:48]} {[%emt 00:00:26]} 24. exd5 {[%clk 00:58:53]}
{[%emt 00:00:21]} c4 {[%clk 00:50:01]} {[%emt 00:07:17]} 25. h4 {[%clk
00:57:36]} {[%emt 00:01:47]} Bf6 {[%clk 00:49:31]} {[%emt 00:01:00]} 26. Re4
{[%clk 00:56:38]} {[%emt 00:01:29]} Kh7 {[%clk 00:48:46]} {[%emt 00:01:15]} 27.
g4 {[%clk 00:38:14]} {[%emt 00:18:53]} cxd3 {[%clk 00:47:39]} {[%emt 00:01:37]}
28. cxd3 {[%clk 00:38:22]} {[%emt 00:00:22]} Rc2 {[%clk 00:47:03]} {[%emt
00:01:06]} 29. Rf1 {[%clk 00:38:46]} {[%emt 00:00:06]} Qc5 {[%clk 00:25:41]}
{[%emt 00:21:53]} 30. g5 {[%clk 00:37:22]} {[%emt 00:01:53]} Bd8 {[%clk
00:25:36]} {[%emt 00:00:35]} 31. Nxg7 {[%clk 00:32:26]} {[%emt 00:05:26]} Qc8
{[%clk 00:20:31]} {[%emt 00:05:36]} 32. Qxh6+ {[%clk 00:30:53]} {[%emt
00:02:02]} Kg8 {[%clk 00:20:56]} {[%emt 00:00:05]} 33. Nh5 {[%clk 00:31:04]}
{[%emt 00:00:20]} 1-0

[Event "NJSK 2024 C"]
[Site "Groningen, Netherlands"]
[Date "2024.05.02"]
[Round "8.8"]
[White "Guillaumond, Matthieu"]
[Black "Koppenens, Oscar"]
[Result "1-0"]
[TimeControl "90min/40moves + 30min + 30sec/move"]
[WhiteElo "1945"]
[BlackElo "1893"]

1. e4 {[%clk 01:30:58]} {[%emt 00:00:01]} c5 {[%clk 01:30:53]} {[%emt
00:00:08]} 2. c3 {[%clk 01:31:17]} {[%emt 00:00:10]} d5 {[%clk 01:30:57]}
{[%emt 00:00:26]} 3. exd5 {[%clk 01:31:33]} {[%emt 00:00:14]} Qxd5 {[%clk
01:31:22]} {[%emt 00:00:05]} 4. d4 {[%clk 01:31:20]} {[%emt 00:00:44]} cxd4
{[%clk 01:30:32]} {[%emt 00:01:20]} 5. cxd4 {[%clk 01:31:27]} {[%emt 00:00:22]}
Nc6 {[%clk 01:30:08]} {[%emt 00:00:55]} 6. Nf3 {[%clk 01:31:18]} {[%emt
00:00:37]} Bg4 {[%clk 01:29:54]} {[%emt 00:00:46]} 7. Nc3 {[%clk 01:30:45]}
{[%emt 00:01:02]} Qa5 {[%clk 01:14:52]} {[%emt 00:15:33]} 8. d5 {[%clk
01:29:39]} {[%emt 00:01:35]} Rd8 {[%clk 00:56:17]} {[%emt 00:19:05]} 9. Qb3
{[%clk 01:23:10]} {[%emt 00:06:58]} Bxf3 {[%clk 00:53:36]} {[%emt 00:03:12]} 10.
gxf3 {[%clk 01:22:00]} {[%emt 00:01:40]} Nd4 {[%clk 00:52:56]} {[%emt
00:01:12]} 11. Qxb7 {[%clk 01:20:47]} {[%emt 00:01:42]} Nf6 {[%clk 00:52:04]}
{[%emt 00:01:22]} 12. Be3 {[%clk 01:12:07]} {[%emt 00:09:10]} Rd7 {[%clk
00:43:52]} {[%emt 00:08:42]} 13. Qb8+ {[%clk 01:08:17]} {[%emt 00:04:19]} Rd8
{[%clk 00:44:17]} {[%emt 00:00:06]} 14. Qb7 {[%clk 01:08:36]} {[%emt 00:00:10]}
Rd7 {[%clk 00:44:07]} {[%emt 00:00:40]} 15. Qb8+ {[%clk 01:08:40]} {[%emt
00:00:27]} Rd8 {[%clk 00:44:33]} {[%emt 00:00:05]} 16. Bb5+ {[%clk 01:08:58]}
{[%emt 00:00:12]} Nxb5 {[%clk 00:44:47]} {[%emt 00:00:15]} 17. Qxb5+ {[%clk
01:09:07]} {[%emt 00:00:20]} Qxb5 {[%clk 00:45:13]} {[%emt 00:00:04]} 18. Nxb5
{[%clk 01:09:27]} {[%emt 00:00:11]} Nxd5 {[%clk 00:44:42]} {[%emt 00:01:01]} 19.
Nxa7 {[%clk 01:08:35]} {[%emt 00:01:22]} e6 {[%clk 00:44:46]} {[%emt 00:00:26]}
20. Nc6 {[%clk 01:06:04]} {[%emt 00:03:01]} Rc8 {[%clk 00:44:55]} {[%emt
00:00:21]} 21. Rc1 {[%clk 01:05:59]} {[%emt 00:00:35]} Bd6 {[%clk 00:42:18]}
{[%emt 00:03:06]} 22. Ke2 {[%clk 01:04:00]} {[%emt 00:02:30]} Nxe3 {[%clk
00:39:42]} {[%emt 00:03:05]} 23. fxe3 {[%clk 01:02:04]} {[%emt 00:02:26]} Kd7
{[%clk 00:39:59]} {[%emt 00:00:14]} 24. Nd4 {[%clk 01:02:22]} {[%emt 00:00:12]}
Rxc1 {[%clk 00:38:58]} {[%emt 00:01:31]} 25. Rxc1 {[%clk 01:02:31]} {[%emt
00:00:20]} Rb8 {[%clk 00:38:40]} {[%emt 00:00:48]} 26. b3 {[%clk 01:02:05]}
{[%emt 00:00:58]} Rc8 {[%clk 00:35:29]} {[%emt 00:03:41]} 27. Rxc8 {[%clk
01:01:07]} {[%emt 00:01:27]} Kxc8 {[%clk 00:35:55]} {[%emt 00:00:04]} 28. h3
{[%clk 01:01:22]} {[%emt 00:00:15]} Kb7 {[%clk 00:36:15]} {[%emt 00:00:10]} 29.
Nb5 {[%clk 00:58:41]} {[%emt 00:03:11]} Be7 {[%clk 00:35:54]} {[%emt 00:00:51]}
30. Kd3 {[%clk 00:58:39]} {[%emt 00:00:32]} Kb6 {[%clk 00:35:56]} {[%emt
00:00:29]} 31. Kc4 {[%clk 00:58:27]} {[%emt 00:00:41]} g5 {[%clk 00:35:21]}
{[%emt 00:01:04]} 32. Nd4 {[%clk 00:56:52]} {[%emt 00:02:06]} h5 {[%clk
00:35:21]} {[%emt 00:00:30]} 33. b4 {[%clk 00:55:30]} {[%emt 00:01:52]} h4
{[%emt 00:12:49]} 34. e4 {[%clk 00:54:25]} {[%emt 00:00:08]} Bf6 {[%clk
00:23:43]} {[%emt 00:01:16]} 35. a4 {[%clk 00:52:25]} {[%emt 00:02:29]} Be5
{[%clk 00:23:26]} {[%emt 00:00:48]} 36. a5+ {[%clk 00:51:33]} {[%emt 00:01:23]}
Kb7 {[%clk 00:23:47]} {[%emt 00:00:08]} 37. b5 {[%clk 00:50:20]} {[%emt
00:01:35]} Bc7 {[%clk 00:22:26]} {[%emt 00:01:58]} 38. Nc6 {[%clk 00:47:47]}
{[%emt 00:03:04]} f5 {[%clk 00:22:02]} {[%emt 00:00:54]} 39. a6+ {[%clk
00:45:57]} {[%emt 00:02:19]} Kb6 {[%clk 00:20:17]} {[%emt 00:02:16]} 40. exf5
{[%clk 00:45:26]} {[%emt 00:01:01]} exf5 {[%clk 00:20:40]} {[%emt 00:00:07]} 41.
Ne7 {[%clk 00:45:33]} {[%emt 00:00:22]} g4 {[%clk 00:15:23]} {[%emt 00:05:49]}
42. Nc8+ {[%clk 00:45:47]} {[%emt 00:00:15]} Ka5 {[%clk 00:15:48]} {[%emt
00:00:05]} 43. a7 {[%clk 00:46:06]} {[%emt 00:00:11]} g3 {[%clk 00:16:13]}
{[%emt 00:00:04]} 44. a8=R# {[%clk 00:46:06]} {[%emt 00:00:30]} 1-0

[Event "NJSK 2024 C"]
[Site "Groningen, Netherlands"]
[Date "2024.05.02"]
[Round "8.9"]
[White "Ngangbam, Chingthang"]
[Black "Klein Tuente, Sam"]
[Result "0-1"]
[TimeControl "90min/40moves + 30min + 30sec/move"]
[WhiteElo "1713"]
[BlackElo "1732"]

1. e4 {[%clk 01:30:50]} {[%emt 00:00:08]} c5 {[%clk 01:30:59]} {[%emt
00:00:02]} 2. Nf3 {[%clk 01:31:12]} {[%emt 00:00:07]} e6 {[%clk 01:31:28]}
{[%emt 00:00:02]} 3. d4 {[%clk 01:31:25]} {[%emt 00:00:17]} cxd4 {[%clk
01:31:57]} {[%emt 00:00:01]} 4. Nxd4 {[%clk 01:31:46]} {[%emt 00:00:08]} Nc6
{[%clk 01:32:26]} {[%emt 00:00:03]} 5. Nc3 {[%clk 01:31:51]} {[%emt 00:00:24]}
Qc7 {[%clk 01:32:54]} {[%emt 00:00:01]} 6. Be3 {[%clk 01:31:33]} {[%emt
00:00:48]} a6 {[%clk 01:33:21]} {[%emt 00:00:04]} 7. f4 {[%clk 01:27:29]}
{[%emt 00:04:34]} Bb4 {[%clk 01:32:56]} {[%emt 00:00:55]} 8. Qd3 {[%clk
01:24:52]} {[%emt 00:03:07]} Nf6 {[%clk 01:32:34]} {[%emt 00:00:52]} 9. Be2
{[%clk 01:23:41]} {[%emt 00:01:41]} d5 {[%clk 01:32:43]} {[%emt 00:00:21]} 10.
e5 {[%clk 01:22:59]} {[%emt 00:01:12]} Ne4 {[%clk 01:32:36]} {[%emt 00:00:37]}
11. O-O {[%clk 01:20:26]} {[%emt 00:03:03]} Bxc3 {[%clk 01:31:13]} {[%emt
00:01:54]} 12. bxc3 {[%clk 01:20:50]} {[%emt 00:00:06]} Bd7 {[%clk 01:28:50]}
{[%emt 00:02:52]} 13. Bf3 {[%clk 01:15:00]} {[%emt 00:06:19]} Nxd4 {[%clk
01:25:59]} {[%emt 00:03:21]} 14. Qxd4 {[%clk 01:03:22]} {[%emt 00:12:08]} Nxc3
{[%clk 01:22:23]} {[%emt 00:04:06]} 15. Bd2 {[%clk 01:00:01]} {[%emt 00:03:51]}
Rc8 {[%clk 01:18:08]} {[%emt 00:04:46]} 16. a4 {[%clk 00:56:23]} {[%emt
00:04:08]} Qc5 {[%clk 01:16:44]} {[%emt 00:01:54]} 17. Bxc3 {[%clk 00:49:55]}
{[%emt 00:06:57]} Qxc3 {[%clk 01:17:08]} {[%emt 00:00:07]} 18. Qb6 {[%clk
00:49:22]} {[%emt 00:01:03]} Qc5+ {[%clk 01:17:36]} {[%emt 00:00:02]} 19. Qxc5
{[%clk 00:49:44]} {[%emt 00:00:07]} Rxc5 {[%clk 01:18:05]} {[%emt 00:00:02]} 20.
Rfb1 {[%clk 00:48:20]} {[%emt 00:01:55]} Bc6 {[%clk 01:18:08]} {[%emt
00:00:27]} 21. Rb2 {[%clk 00:47:54]} {[%emt 00:00:55]} Kd7 {[%clk 01:17:43]}
{[%emt 00:00:55]} 22. Be2 {[%clk 00:47:37]} {[%emt 00:00:46]} Kc8 {[%clk
01:17:21]} {[%emt 00:00:51]} 23. Rab1 {[%clk 00:43:38]} {[%emt 00:04:31]} Ra5
{[%clk 01:15:09]} {[%emt 00:02:42]} 24. h3 {[%clk 00:27:50]} {[%emt 00:16:17]}
Rxa4 {[%clk 01:15:17]} {[%emt 00:00:23]} 25. Bd3 {[%clk 00:27:29]} {[%emt
00:00:50]} g6 {[%clk 01:15:13]} {[%emt 00:00:35]} 26. g3 {[%clk 00:27:18]}
{[%emt 00:00:40]} Rd8 {[%clk 01:15:32]} {[%emt 00:00:12]} 27. Kf2 {[%clk
00:26:50]} {[%emt 00:00:55]} b5 {[%clk 01:15:14]} {[%emt 00:00:51]} 28. Kf3
{[%clk 00:26:51]} {[%emt 00:00:28]} h5 {[%clk 01:15:08]} {[%emt 00:00:38]} 29.
g4 {[%clk 00:24:39]} {[%emt 00:02:40]} hxg4+ {[%clk 01:12:49]} {[%emt
00:02:50]} 30. Kxg4 {[%clk 00:24:59]} {[%emt 00:00:08]} Rh8 {[%clk 01:12:36]}
{[%emt 00:00:45]} 31. h4 {[%clk 00:23:39]} {[%emt 00:01:50]} Rh5 {[%clk
01:12:29]} {[%emt 00:00:37]} 32. Rb3 {[%clk 00:21:40]} {[%emt 00:02:28]} Rxe5
{[%clk 01:12:11]} {[%emt 00:00:49]} 33. Kf3 {[%clk 00:12:19]} {[%emt 00:09:51]}
d4+ {[%clk 01:11:42]} {[%emt 00:00:59]} 34. Kg4 {[%clk 00:12:29]} {[%emt
00:00:18]} Re3 {[%clk 01:12:06]} {[%emt 00:00:07]} 35. Rb4 {[%clk 00:11:57]}
{[%emt 00:01:01]} Rxb4 {[%clk 01:12:10]} {[%emt 00:00:28]} 36. Rxb4 {[%clk
00:12:19]} {[%emt 00:00:07]} Be4 {[%clk 01:12:04]} {[%emt 00:00:37]} 37. Bxe4
{[%clk 00:09:36]} {[%emt 00:03:13]} Rxe4 {[%clk 01:12:26]} {[%emt 00:00:09]} 38.
c4 {[%clk 00:09:56]} {[%emt 00:00:09]} d3 {[%clk 01:12:43]} {[%emt 00:00:13]}
39. Rb3 {[%clk 00:09:48]} {[%emt 00:00:38]} bxc4 {[%clk 01:13:08]} {[%emt
00:00:06]} 40. Rb1 {[%clk 00:10:02]} {[%emt 00:00:15]} d2 {[%clk 01:13:34]}
{[%emt 00:00:05]} 41. Rd1 {[%clk 00:10:11]} {[%emt 00:00:20]} c3 {[%clk
01:14:01]} {[%emt 00:00:04]} 42. Kf3 {[%clk 00:10:31]} {[%emt 00:00:10]} Re1
{[%clk 01:14:26]} {[%emt 00:00:04]} 43. Rxe1 {[%clk 00:10:42]} {[%emt
00:00:19]} dxe1=Q {[%clk 01:14:49]} {[%emt 00:00:08]} 0-1